bitfinex-derivatives/quotes_SOLF0:USTF0_20250731
["timestamp","ask_amount","ask_price","bid_price","bid_amount"]
[1753971123776,3.08,176.9,176.85,108.38]
[1753971124388,3.08,176.9,176.83,1.01]
[1753971124889,3.08,176.88,176.79,7.54789163]
[1753971125187,3.08,176.88,176.8,1.01]
[1753971125384,7.51789163,176.97,176.87,6.53789163]
[1753971125589,4.29116592,176.96,176.91,6.53789163]
[1753971125791,0.98,176.97,176.91,6.53789163]
[1753971125792,3.08,176.95,176.92,1.01]
[1753971125987,3.08,176.96,176.91,6.53789163]
[1753971126186,6.53789163,176.92,176.8,1.01]
[1753971126377,3.08,176.88,176.8,1.01]
[1753971127084,6.53789163,176.87,176.78,1.01]
[1753971127385,3.08,176.84,176.79,5.6568]
[1753971127585,3.08,176.84,176.74,7.54789163]
[1753971127884,3.08,176.84,176.47,12.48296724]
[1753971127885,6.53789163,176.79,176.61,11.3247]
[1753971128086,3.08,176.78,176.67,6.53789163]
[1753971128292,3.08,176.76,176.66,1.01]
[1753971128488,3.08,176.76,176.68,1.01]
[1753971128993,6.53789163,176.77,176.72,5.6588]
[1753971129184,3.08,176.76,176.71,6.53789163]
[1753971129489,6.53789163,176.83,176.77,5.6573]
[1753971129687,3.08,176.78,176.73,6.53789163]
[1753971129890,3.08,176.81,176.74,1.01]
[1753971130482,9.61789163,176.81,176.75,5.658]
[1753971130689,3.08,176.8,176.71,1.01]
[1753971130884,3.08,176.78,176.71,1.01]
[1753971131284,3.08,176.78,176.7,108.42]
[1753971131791,3.08,176.76,176.7,108.42]
[1753971132185,6.53789163,176.88,176.72,1.01]
[1753971132380,604.88782616,176.98,176.77,6.53789163]
[1753971132381,3.08,176.86,176.77,6.53789163]
[1753971132584,6.53789163,176.85,176.79,5.6566]
[1753971132786,3.08,176.84,176.76,1.01]
[1753971133189,3.08,176.84,176.76,7.54789163]
[1753971133491,3.08,176.87,176.83,1.01]
[1753971133794,3.08,176.87,176.84,7.54789163]
[1753971134189,6.53789163,176.91,176.81,1.01]
[1753971134382,3.08,176.9,176.84,7.54789163]
[1753971134584,3.08,176.97,176.88,6.53789163]
[1753971134795,3.08,176.97,176.91,5.6529]
[1753971134983,3.08,176.97,176.88,9.96886672]
[1753971135390,9.96886672,176.94,176.82,9.96886672]
[1753971135586,3.08,176.93,176.83,1.01]
[1753971135795,3.08,176.93,176.86,1.01]
[1753971136388,3.08,176.93,176.92,5.6527]
[1753971136592,212.71642075,176.98,176.89,1.01]
[1753971136795,3.08,176.97,176.89,1.01]
[1753971136997,3.08,176.97,176.83,1.01]
[1753971137191,3.08,176.97,176.9,1.01]
[1753971137496,3.08,177.0,176.95,9.96886672]
[1753971137791,3.08,177.05,176.98,9.96886672]
[1753971137995,3.08,177.05,176.98,10.97886672]
[1753971138299,3.08,177.04,176.98,10.97886672]
[1753971138793,3.08,177.03,177.02,5.6494]
[1753971138994,3.08,177.08,176.98,9.96886672]
[1753971139195,3.08,177.08,177.04,5.6486]
[1753971139502,3.08,177.08,176.99,1.01]
[1753971139993,3.08,177.08,176.98,9.96886672]
[1753971140393,3.08,177.08,176.96,1.01]
[1753971140589,3.08,177.05,176.93,1.01]
[1753971140797,8.7298,177.02,176.94,5.6518]
[1753971141094,9.96886672,177.03,176.9,10.97886672]
[1753971141095,3.08,177.01,176.9,10.97886672]
[1753971141300,3.08,176.99,176.93,5.6521]
[1753971141491,3.08,176.99,176.93,10.97886672]
[1753971142990,3.08,176.98,176.93,10.97886672]
[1753971143197,3.08,177.05,176.93,9.96886672]
[1753971143791,3.08,177.03,176.93,9.96886672]
[1753971144195,3.08,177.02,176.96,5.6514]
[1753971144493,3.08,177.02,176.94,1.01]
[1753971144691,3.08,177.02,176.96,10.97886672]
[1753971145197,3.08,177.01,176.98,5.6506]
[1753971145403,3.08,177.0,176.98,5.6506]
[1753971145801,3.08,177.0,176.97,5.651]
[1753971145995,3.08,176.99,176.96,9.96886672]
[1753971146198,3.08,176.98,176.96,9.96886672]
[1753971146502,3.08,177.06,176.96,9.96886672]
[1753971146890,3.08,177.06,176.97,1.01]
[1753971147290,3.08,177.06,176.96,9.96886672]
[1753971147797,4.29977752,177.05,176.94,1.01]
[1753971148103,3.02,177.03,176.93,9.96886672]
[1753971148305,5.6498,177.02,176.96,5.6513]
[1753971148501,3.02,177.01,176.93,9.96886672]
[1753971148904,3.02,177.01,176.93,10.97886672]
[1753971149397,4.71616946,177.09,176.97,1.01]
[1753971149398,3.02,177.06,176.97,1.01]
[1753971149896,4.30685111,177.05,176.96,9.96886672]
[1753971150205,3.02,177.03,176.93,10.97886672]
[1753971150698,3.02,177.03,176.94,1.01]
[1753971150899,3.02,177.03,176.97,1.01]
[1753971151808,4.71616946,177.11,177.0,1.01]
[1753971152009,7.33339732,177.1,177.0,1.01]
[1753971152204,9.36855406,177.17,177.02,9.96886672]
[1753971152205,3.02,177.08,177.02,9.96886672]
[1753971152701,3.02,177.08,177.02,10.97886672]
[1753971153100,3.02,177.12,177.06,5.6482]
[1753971153302,3.02,177.1,177.06,5.6482]
[1753971153499,3.02,177.12,177.06,5.6482]
[1753971153803,4.32032801,177.11,177.06,5.6482]
[1753971154006,5.6458,177.14,177.07,5.6479]
[1753971154202,3.02,177.12,177.06,1.01]
[1753971154401,3.02,177.12,177.06,5.648]
[1753971154702,3.02,177.12,177.05,9.96886672]
[1753971154904,3.02,177.12,177.06,6.54781529]
[1753971155206,3.02,177.12,177.08,7.55781529]
[1753971155403,3.02,177.11,177.08,7.55781529]
[1753971155603,3.02,177.11,177.09,5.6471]
[1753971155901,3.02,177.15,177.06,6.54781529]
[1753971156102,3.02,177.12,177.04,6.54781529]
[1753971156297,3.02,177.1,177.04,6.54781529]
[1753971156598,3.02,177.1,177.04,12.19661529]
[1753971157208,3.02,177.09,177.04,6.54781529]
[1753971157502,3.02,177.13,177.04,6.54781529]
[1753971157999,3.02,177.18,177.1,6.54781529]
[1753971158209,3.02,177.16,177.1,6.54781529]
[1753971158413,4.71616946,177.21,177.0,504.99]
[1753971158414,3.02,177.21,177.13,1.01]
[1753971158604,3.02,177.18,177.12,6.54781529]
[1753971159504,3.02,177.18,177.1,6.54781529]
[1753971159709,6.54781529,177.18,177.08,7.55781529]
[1753971159913,3.02,177.17,177.08,6.54781529]
[1753971160113,3.02,177.17,177.06,1.01]
[1753971160316,3.02,177.14,177.07,12.19561529]
[1753971160513,3.02,177.14,177.07,6.54781529]
[1753971160915,3.02,177.14,177.08,5.6474]
[1753971161115,3.02,177.14,177.07,9.94743585]
[1753971161309,3.02,177.14,177.08,5.6474]
[1753971161510,3.02,177.14,177.08,1.01]
[1753971161820,8.6657,177.14,177.08,1.01]
[1753971162011,3.02,177.18,177.07,9.94743585]
[1753971162213,9.94743585,177.19,177.07,9.94743585]
[1753971162214,3.02,177.16,177.07,9.94743585]
[1753971162515,3.02,177.18,177.08,1.01]
[1753971163015,3.02,177.18,177.1,5.6468]
[1753971163705,3.02,177.17,177.08,1.01]
[1753971164108,5.6448,177.17,177.08,1.01]
[1753971164308,3.02,177.16,177.08,1.01]
[1753971165308,3.02,177.16,177.11,5.6464]
[1753971165512,3.02,177.14,177.11,5.6464]
[1753971165715,3.02,177.21,177.11,1.01]
[1753971165914,5.644,177.2,177.12,5.6461]
[1753971166110,5.644,177.2,177.11,1.01]
[1753971166111,3.02,177.19,177.11,1.01]
[1753971166518,3.02,177.19,177.13,5.6457]
[1753971166713,3.02,177.19,177.13,9.94743585]
[1753971167014,5.6435,177.21,177.14,5.6457]
[1753971167204,3.02,177.2,177.14,5.6457]
[1753971167407,5.643,177.23,177.15,5.6453]
[1753971167609,3.02,177.18,177.15,6.6553]
[1753971167817,3.02,177.24,177.12,9.94743585]
[1753971168015,3.02,177.2,177.14,5.6456]
[1753971168415,379.66,177.28,177.1,5.6468]
[1753971168416,3.02,177.17,177.1,5.6468]
[1753971168607,3.02,177.17,177.06,10.95743585]
[1753971168922,3.02,177.15,177.04,1.01]
[1753971169520,9.94743585,177.13,177.04,1.01]
[1753971169719,3.02,177.11,177.04,1.01]
[1753971171815,3.02,177.15,177.04,1.01]
[1753971172117,3.02,177.15,177.07,1.01]
[1753971172415,3.02,177.15,177.1,1.01]
[1753971172718,3.02,177.15,177.11,1.01]
[1753971172912,3.02,177.15,177.11,6.6565]
[1753971173112,3.02,177.14,177.11,6.6565]
[1753971173316,5.6447,177.18,177.09,9.94743585]
[1753971173525,3.02,177.17,177.09,9.94743585]
[1753971173817,3.02,177.17,177.1,1.01]
[1753971174413,3.02,177.16,177.12,6.6561]
[1753971174617,3.02,177.16,177.13,1.01]
[1753971175220,3.02,177.15,177.12,9.94743585]
[1753971175715,3.02,177.15,177.13,5.6459]
[1753971175923,3.02,177.22,177.12,10.94743585]
[1753971176117,3.02,177.22,177.17,5.6445]
[1753971176321,3.02,177.22,177.15,10.94743585]
[1753971176512,3.02,177.28,177.21,9.94743585]
[1753971176718,3.02,177.28,177.22,5.6429]
[1753971176917,3.02,177.28,177.21,9.94743585]
[1753971177723,3.02,177.28,177.18,1.0]
[1753971177724,3.02,177.28,177.18,10.94743585]
[1753971177918,5.6423,177.25,177.18,9.94743585]
[1753971178224,3.02,177.26,177.18,9.94743585]
[1753971178225,3.02,177.26,177.18,10.94743585]
[1753971178418,4.27010109,177.25,177.18,9.94743585]
[1753971178621,3.21,177.28,177.18,9.94743585]
[1753971178815,3.21,177.26,177.18,9.94743585]
[1753971179018,3.21,177.23,177.19,6.6439]
[1753971179426,4.6662549,177.28,177.19,1.0]
[1753971179726,3.21,177.25,177.18,9.94743585]
[1753971179922,3.21,177.23,177.15,118.18743585]
[1753971180120,3.21,177.23,177.15,9.94743585]
[1753971180421,3.21,177.21,177.14,1.0]
[1753971180814,3.21,177.21,177.12,390.42743585]
[1753971181026,4.27884109,177.2,177.12,387.02343117]
[1753971181324,3.21,177.21,177.14,6.54343117]
[1753971181623,4.28077605,177.2,177.14,7.54343117]
[1753971181821,3.21,177.21,177.14,7.54343117]
[1753971182022,3.21,177.19,177.12,379.48]
[1753971182220,3.21,177.19,177.13,6.54343117]
[1753971182528,3.21,177.24,177.17,6.54343117]
[1753971182819,3.21,177.22,177.19,6.54343117]
[1753971183416,3.21,177.22,177.19,7.54343117]
[1753971183834,3.21,177.24,177.21,6.54343117]
[1753971184324,3.21,177.28,177.21,6.54343117]
[1753971184518,4.27671096,177.27,177.21,6.54343117]
[1753971184726,3.21,177.25,177.21,6.54343117]
[1753971184926,3.21,177.25,177.23,6.54343117]
[1753971185124,214.41963954,177.29,177.23,7.54343117]
[1753971185320,4.6662549,177.34,177.26,6.54343117]
[1753971185522,3.21,177.31,177.28,7.54343117]
[1753971185823,3.21,177.32,177.26,12.18503117]
[1753971186015,4.27406564,177.31,177.27,1.0]
[1753971186330,3.21,177.35,177.28,5.641]
[1753971186531,3.21,177.33,177.28,6.54343117]
[1753971186829,3.21,177.38,177.32,6.54343117]
[1753971187025,3.21,177.38,177.28,108.18]
[1753971187026,7.48652089,177.37,177.34,7.54343117]
[1753971187328,4.6662549,177.42,177.34,6.54343117]
[1753971187516,4.27254237,177.41,177.34,6.54343117]
[1753971187717,3.21,177.39,177.36,6.54343117]
[1753971187924,3.21,177.39,177.36,13.18213117]
[1753971188124,3.21,177.39,177.36,7.54343117]
[1753971188427,3.21,177.43,177.36,13.18193117]
[1753971188620,3.21,177.41,177.38,6.54343117]
[1753971188822,3.21,177.41,177.37,9.91336626]
[1753971189022,3.21,177.41,177.38,1.0]
[1753971189227,3.21,177.47,177.4,9.91336626]
[1753971189425,7.47104529,177.46,177.4,9.91336626]
[1753971189625,3.21,177.46,177.4,9.91336626]
[1753971190316,14.57962116,177.52,177.41,1.0]
[1753971190525,7.46612049,177.51,177.4,9.91336626]
[1753971190726,4.25612049,177.5,177.4,9.91336626]
[1753971190930,3.21,177.48,177.4,9.91336626]
[1753971192828,5.6355,177.47,177.4,9.91336626]
[1753971193128,3.21,177.46,177.37,9.91336626]
[1753971193326,3.21,177.46,177.39,5.6377]
[1753971193529,3.21,177.46,177.37,9.91336626]
[1753971193721,3.21,177.46,177.29,1.0]
[1753971193923,3.21,177.41,177.32,9.91336626]
[1753971194633,3.21,177.41,177.31,1.0]
[1753971194634,3.21,177.4,177.29,119.01336626]
[1753971195125,3.21,177.4,177.29,109.1]
[1753971195329,3.21,177.4,177.29,108.1]
[1753971195731,5.6387,177.37,177.29,108.1]
[1753971195931,3.21,177.36,177.29,108.1]
[1753971196328,3.21,177.36,177.25,10.91336626]
[1753971197528,3.21,177.34,177.24,379.28]
[1753971198144,3.21,177.31,177.25,5.6419]
[1753971198336,3.21,177.31,177.15,1.0]
[1753971198641,3.21,177.31,177.21,10.91336626]
[1753971199139,5.6408,177.3,177.22,5.6429]
[1753971199340,3.21,177.29,177.22,5.6429]
[1753971199534,3.21,177.29,177.21,10.91336626]
[1753971200343,3.21,177.34,177.25,1.0]
[1753971200835,8.8494,177.34,177.27,5.6415]
[1753971201033,3.21,177.33,177.27,5.6415]
[1753971201231,3.21,177.33,177.22,1.0]
[1753971201428,5.6405,177.31,177.22,1.0]
[1753971201629,3.21,177.3,177.22,1.0]
[1753971202035,3.21,177.3,177.24,5.6424]
[1753971202339,3.21,177.3,177.22,1.0]
[1753971202639,3.21,177.3,177.23,5.6426]
[1753971203035,8.8507,177.3,177.22,1.0]
[1753971203240,5.6407,177.3,177.22,6.6429]
[1753971203441,3.21,177.29,177.22,6.6429]
[1753971203640,8.8511,177.29,177.21,9.91336626]
[1753971203945,3.21,177.28,177.19,1.0]
[1753971204438,3.21,177.28,177.21,5.6434]
[1753971204635,3.21,177.28,177.21,6.6434]
[1753971204840,3.21,177.28,177.21,1.0]
[1753971205844,5.6415,177.28,177.2,5.6437]
[1753971206137,3.21,177.27,177.19,1.0]
[1753971206858,3.21,177.27,177.21,5.6434]
[1753971207053,3.21,177.27,177.19,1.0]
[1753971207253,3.21,177.27,177.16,109.1]
[1753971207445,3.21,177.26,177.2,5.6437]
[1753971207848,3.21,177.26,177.18,1.0]
[1753971208157,3.21,177.26,177.18,10.91336626]
[1753971208455,3.21,177.26,177.21,5.6432]
[1753971209150,4.66837645,177.34,177.22,5.6431]
[1753971209151,3.23,177.25,177.22,5.6431]
[1753971209358,9.91336626,177.27,177.14,393.80979626]
[1753971209653,5.643,177.23,177.14,383.89643]
[1753971209857,3.23,177.22,177.14,384.89643]
[1753971210050,3.23,177.21,177.14,384.89643]
[1753971210760,3.23,177.21,177.15,9.91336626]
[1753971210956,3.23,177.21,177.18,7.53947169]
[1753971211253,3.23,177.21,177.19,5.6439]
[1753971211458,3.23,177.21,177.18,7.53947169]
[1753971211953,3.23,177.23,177.14,391.43590169]
[1753971212365,3.23,177.23,177.17,5.6445]
[1753971212558,3.23,177.23,177.14,384.89643]
[1753971212855,3.23,177.25,177.18,1.0]
[1753971213059,3.23,177.25,177.19,6.53947169]
[1753971213253,3.23,177.25,177.16,108.1]
[1753971213254,3.23,177.25,177.2,5.6435]
[1753971213453,3.23,177.25,177.17,7.53947169]
[1753971214261,3.23,177.25,177.19,6.53947169]
[1753971214656,6.53947169,177.28,177.22,5.6431]
[1753971214862,3.23,177.24,177.22,5.6431]
[1753971215263,3.23,177.23,177.21,5.6434]
[1753971215463,3.23,177.23,177.2,1.0]
[1753971215860,3.23,177.27,177.19,6.53947169]
[1753971216566,6.53947169,177.26,177.17,6.53947169]
[1753971216758,6.53947169,177.22,177.16,113.745]
[1753971216961,3.23,177.21,177.16,108.1]
[1753971217362,3.23,177.19,177.17,5.6447]
[1753971217563,3.23,177.19,177.16,108.1]
[1753971217861,3.23,177.26,177.17,7.53947169]
[1753971218061,3.23,177.26,177.19,6.53947169]
[1753971218271,3.23,177.26,177.19,7.53947169]
[1753971218562,3.23,177.3,177.21,6.53947169]
[1753971218763,3.23,177.27,177.25,6.53947169]
[1753971218958,3.23,177.33,177.26,5.6418]
[1753971219155,3.23,177.36,177.27,6.53947169]
[1753971219361,4.66837645,177.4,177.29,6.53947169]
[1753971219566,6.2457027,177.42,177.21,6.53947169]
[1753971219567,7.50487829,177.39,177.33,12.17887169]
[1753971219763,3.23,177.38,177.31,6.53947169]
[1753971220167,3.23,177.38,177.32,5.6399]
[1753971220368,3.23,177.38,177.31,6.53947169]
[1753971220566,3.23,177.37,177.33,6.53947169]
[1753971220763,3.23,177.36,177.33,6.53947169]
[1753971220968,3.23,177.36,177.33,1.0]
[1753971221463,3.23,177.36,177.35,5.639]
[1753971221664,3.23,177.36,177.33,1.0]
[1753971222064,3.23,177.39,177.34,1.0]
[1753971222270,3.23,177.38,177.35,1.0]
[1753971222570,3.23,177.45,177.35,10.92009198]
[1753971222770,9.92009198,177.47,177.35,10.92009198]
[1753971222771,3.23,177.43,177.36,1.0]
[1753971223176,3.23,177.43,177.35,9.92009198]
[1753971223774,3.23,177.42,177.35,15.55889198]
[1753971224175,3.23,177.42,177.35,9.92009198]
[1753971224375,3.23,177.42,177.35,15.55889198]
[1753971224777,3.23,177.42,177.35,9.92009198]
[1753971226677,3.23,177.44,177.38,5.6378]
[1753971226883,3.23,177.44,177.37,9.92009198]
[1753971227175,9.92009198,177.48,177.37,9.92009198]
[1753971227377,3.23,177.43,177.37,9.92009198]
[1753971227579,3.23,177.43,177.38,1.0]
[1753971227779,3.23,177.45,177.41,1.0]
[1753971228077,3.23,177.5,177.41,1.0]
[1753971228274,4.27165462,177.49,177.43,5.6362]
[1753971228471,3.23,177.48,177.41,1.0]
[1753971228871,3.23,177.48,177.4,9.92009198]
[1753971229070,3.23,177.48,177.38,1.0]
[1753971229377,3.23,177.44,177.37,9.92009198]
[1753971229573,3.23,177.44,177.37,10.92009198]
[1753971230374,3.23,177.42,177.37,9.92009198]
[1753971230573,3.23,177.42,177.36,108.04]
[1753971231073,9.92009198,177.49,177.36,108.04]
[1753971231279,4.27065834,177.48,177.36,108.04]
[1753971231473,3.23,177.46,177.37,1.0]
[1753971232077,3.23,177.48,177.4,5.6374]
[1753971232379,3.23,177.48,177.37,10.92009198]
[1753971232775,5.6362,177.45,177.39,5.6377]
[1753971232982,3.23,177.44,177.39,5.6377]
[1753971233176,3.23,177.44,177.37,9.92009198]
[1753971233376,3.23,177.44,177.34,10.92009198]
[1753971233686,3.23,177.44,177.38,1.0]
[1753971233975,3.23,177.43,177.39,6.6377]
[1753971234283,3.23,177.48,177.4,1.0]
[1753971234474,5.6355,177.46,177.4,1.0]
[1753971234775,3.23,177.44,177.37,9.92009198]
[1753971234977,3.23,177.44,177.41,1.0]
[1753971235286,3.23,177.5,177.38,1.0]
[1753971235476,3.23,177.47,177.37,9.92009198]
[1753971235781,3.23,177.44,177.35,1.0]
[1753971236175,3.23,177.44,177.38,1.0]
[1753971236377,3.23,177.45,177.41,1.0]
[1753971236584,3.23,177.49,177.41,1.0]
[1753971236883,3.23,177.47,177.4,9.92009198]
[1753971237276,5.6356,177.46,177.4,15.55729198]
[1753971237477,3.23,177.45,177.39,1.0]
[1753971237884,3.23,177.44,177.4,6.6374]
[1753971238082,3.15,177.44,177.38,9.92009198]
[1753971238278,5.6368,177.43,177.37,5.6381]
[1753971238483,3.15,177.46,177.38,10.92009198]
[1753971238786,5.6358,177.45,177.39,5.6375]
[1753971238985,3.15,177.44,177.38,10.92009198]
[1753971239283,3.15,177.49,177.39,1.0]
[1753971239483,5.6357,177.46,177.4,5.6373]
[1753971239681,3.15,177.45,177.39,1.0]
[1753971239885,3.15,177.45,177.38,9.92009198]
[1753971240081,3.15,177.45,177.3,11.2807]
[1753971240082,3.15,177.41,177.35,9.92009198]
[1753971240287,3.15,177.41,177.36,1.0]
[1753971240592,3.15,177.41,177.37,1.0]
[1753971240792,3.15,177.41,177.38,1.0]
[1753971240985,3.15,177.46,177.35,10.92009198]
[1753971241191,9.92009198,177.47,177.35,10.92009198]
[1753971241384,3.15,177.46,177.35,10.92009198]
[1753971241581,3.15,177.46,177.39,9.92009198]
[1753971241788,3.15,177.45,177.4,5.6373]
[1753971241987,3.15,177.5,177.39,1.0]
[1753971242190,9.92009198,177.48,177.38,9.92009198]
[1753971242385,9.92009198,177.48,177.36,1.0]
[1753971242386,3.15,177.47,177.36,1.0]
[1753971242688,3.15,177.47,177.38,10.92009198]
[1753971242987,3.15,177.43,177.35,1.0]
[1753971243185,6.52592832,177.4,177.31,1.0]
[1753971243389,3.15,177.35,177.28,7.52592832]
[1753971243790,3.15,177.35,177.33,5.6395]
[1753971243993,3.15,177.37,177.29,1.0]
[1753971244394,3.15,177.37,177.29,5.6407]
[1753971244592,3.15,177.35,177.27,487.1]
[1753971245094,3.15,177.33,177.29,5.6406]
[1753971245286,3.15,177.33,177.27,488.1]
[1753971246685,5.64,177.32,177.27,493.7414]
[1753971246890,3.15,177.31,177.27,487.1]
[1753971247096,3.15,177.31,177.27,107.94]
[1753971247294,3.15,177.33,177.27,107.94]
[1753971247897,3.15,177.31,177.27,107.94]
[1753971248193,3.15,177.33,177.27,107.94]
[1753971249796,3.15,177.31,177.27,107.94]
[1753971250197,3.15,177.31,177.25,6.52592832]
[1753971250491,6.52592832,177.34,177.25,6.52592832]
[1753971250696,3.15,177.33,177.23,1.0]
[1753971250893,6.52592832,177.3,177.22,107.94]
[1753971251093,3.15,177.29,177.22,107.94]
[1753971251296,3.15,177.29,177.23,1.0]
[1753971251496,6.52592832,177.32,177.22,114.46592832]
[1753971251689,3.15,177.31,177.23,1.0]
[1753971252094,3.15,177.28,177.25,5.6421]
[1753971252395,3.15,177.31,177.23,1.0]
[1753971252690,3.15,177.29,177.23,1.0]
[1753971253194,3.15,177.28,177.22,107.94]
[1753971253394,3.15,177.28,177.22,108.94]
[1753971253599,5.6423,177.25,177.21,5.6434]
[1753971253795,3.15,177.24,177.21,5.6434]
[1753971253991,3.15,177.24,177.17,487.88]
[1753971254197,3.15,177.24,177.2,5.6435]
[1753971254998,3.15,177.24,177.18,6.52592832]
[1753971255202,3.15,177.24,177.21,1.0]
[1753971255400,3.15,177.23,177.21,1.0]
[1753971255607,6.52592832,177.27,177.18,6.52592832]
[1753971255801,3.15,177.26,177.19,1.0]
[1753971256005,3.15,177.26,177.23,5.6426]
[1753971256201,3.15,177.26,177.24,6.52592832]
[1753971256396,6.52592832,177.31,177.22,6.52592832]
[1753971256594,9.67592832,177.3,177.21,6.52592832]
[1753971256798,3.15,177.29,177.21,7.52592832]
[1753971257002,3.15,177.27,177.21,7.52592832]
[1753971257901,3.15,177.34,177.25,6.52592832]
[1753971258297,3.15,177.34,177.25,12.16812832]
[1753971258503,3.15,177.28,177.25,6.52592832]
[1753971259005,6.52592832,177.34,177.23,7.52592832]
[1753971259207,3.15,177.25,177.23,7.52592832]
[1753971259500,4.69079795,177.37,177.19,7.52592832]
[1753971259501,6.52592832,177.3,177.19,7.52592832]
[1753971259703,3.15,177.25,177.19,115.48592832]
[1753971260300,3.15,177.25,177.21,5.6432]
[1753971260501,3.15,177.24,177.21,5.6432]
[1753971260701,3.15,177.23,177.19,114.48592832]
[1753971261010,3.15,177.22,177.19,115.48592832]
[1753971261307,3.15,177.27,177.19,107.96]
[1753971261811,6.52592832,177.28,177.19,107.96]
[1753971262008,3.15,177.22,177.19,108.96]
[1753971262308,3.15,177.27,177.2,1.0]
[1753971262698,5.6425,177.24,177.19,113.604]
[1753971262902,3.15,177.22,177.19,107.96]
[1753971263103,3.15,177.22,177.19,108.96]
[1753971263506,6.52592832,177.3,177.21,1.0]
[1753971263707,3.15,177.29,177.21,1.0]
[1753971264012,5.6415,177.28,177.22,5.643]
[1753971264211,9.67592832,177.27,177.19,107.96]
[1753971264413,5.6427,177.24,177.19,107.96]
[1753971264611,3.15,177.23,177.19,107.96]
[1753971264812,3.15,177.23,177.17,378.94]
[1753971265006,3.15,177.21,177.17,492.5245]
[1753971265207,3.15,177.23,177.18,1.0]
[1753971265407,6.52592832,177.27,177.17,486.88]
[1753971265617,3.15,177.21,177.19,5.644]
[1753971266112,3.15,177.21,177.19,6.644]
[1753971266415,6.52592832,177.27,177.19,1.0]
[1753971266608,3.15,177.26,177.19,1.0]
[1753971267211,3.15,177.25,177.19,1.0]
[1753971267409,3.15,177.25,177.18,107.94]
[1753971267809,3.15,177.25,177.19,5.6438]
[1753971268007,4.70030841,177.35,177.18,107.94]
[1753971268210,3.31,177.25,177.22,7.52592832]
[1753971268410,3.31,177.23,177.21,107.94]
[1753971269214,3.31,177.23,177.21,108.94]
[1753971269810,3.31,177.26,177.21,108.94]
[1753971270006,11.2763,177.38,177.24,6.52592832]
[1753971270007,3.31,177.28,177.24,6.52592832]
[1753971270206,3.31,177.28,177.24,7.52592832]
[1753971270414,3.31,177.28,177.23,12.16862832]
[1753971270608,3.31,177.28,177.19,6.52592832]
[1753971270813,3.31,177.28,177.2,107.94]
[1753971271010,3.31,177.25,177.2,107.94]
[1753971271317,3.31,177.25,177.19,6.52592832]
[1753971271514,3.31,177.25,177.19,114.44592832]
[1753971271915,3.31,177.25,177.19,107.92]
[1753971272116,5.6427,177.24,177.19,113.5639]
[1753971272307,3.31,177.23,177.19,107.92]
[1753971272916,3.31,177.21,177.19,107.92]
[1753971273112,3.31,177.23,177.15,1.0]
[1753971273320,8.9537,177.21,177.16,5.645]
[1753971273522,3.31,177.21,177.14,4.85643]